bitfinex-derivatives/quotes_BTCF0:USTF0_20240902
["timestamp","ask_amount","ask_price","bid_price","bid_amount"]
[1725249506498,0.33341515,57732.0,57731.0,0.3618]
[1725249507685,0.28024621,57732.0,57731.0,0.3618]
[1725249508504,0.28024621,57732.0,57731.0,0.3622]
[1725249508802,0.33341431,57732.0,57731.0,0.3622]
[1725249510102,0.28024621,57732.0,57731.0,0.3622]
[1725249511297,0.28024146,57732.0,57731.0,0.3622]
[1725249511503,0.01642753,57732.0,57731.0,1.542469]
[1725249511798,0.12042052,57738.0,57732.0,0.51964]
[1725249511999,0.12042052,57739.0,57737.0,0.3612]
[1725249512208,0.03345045,57738.0,57737.0,0.3612]
[1725249512396,0.21919809,57738.0,57737.0,0.421822]
[1725249512597,0.18574764,57738.0,57737.0,1.541422]
[1725249512795,0.060611,57748.0,57737.0,1.541422]
[1725249512796,0.12042052,57748.0,57744.0,0.060615]
[1725249513108,0.21919642,57747.0,57744.0,0.060614]
[1725249513301,0.03344878,57746.0,57744.0,0.060614]
[1725249513500,0.19135228,57751.0,57745.0,0.9216]
[1725249513696,0.060606,57753.0,57750.0,0.3608]
[1725249513901,0.19135228,57752.0,57750.0,0.3608]
[1725249514193,0.060606,57753.0,57750.0,0.3608]
[1725249514399,0.060606,57753.0,57752.0,0.0004]
[1725249514804,0.26143101,57753.0,57752.0,0.0004]
[1725249516493,1.38087101,57753.0,57750.0,0.001]
[1725249516693,0.059613,57746.0,57745.0,0.3608]
[1725249516999,0.26016088,57746.0,57745.0,0.3608]
[1725249517402,0.060618,57741.0,57740.0,0.00025995]
[1725249517771,0.25687948,57741.0,57740.0,0.00025995]
[1725249518009,0.19726148,57741.0,57740.0,0.20025995]
[1725249518310,0.0004,57753.0,57740.0,0.20025995]
[1725249518311,0.19726148,57745.0,57740.0,0.20025995]
[1725249518496,0.19726148,57745.0,57744.0,0.3608]
[1725249518695,0.00370372,57750.0,57744.0,0.3608]
[1725249518696,0.060613,57746.0,57744.0,0.3608]
[1725249519091,0.19643712,57745.0,57744.0,0.3608]
[1725249521908,0.19643712,57745.0,57744.0,0.3618]
[1725249522602,0.19426846,57749.0,57744.0,0.3618]
[1725249522803,0.060608,57751.0,57748.0,0.0004]
[1725249523107,0.19426846,57750.0,57748.0,0.0004]
[1725249523308,0.0004,57753.0,57749.0,0.3608]
[1725249523501,0.19551681,57750.0,57749.0,0.3608]
[1725249523809,0.19551681,57751.0,57749.0,0.62141]
[1725249524003,0.0004,57753.0,57750.0,0.061008]
[1725249524309,0.0004,57753.0,57752.0,0.3608]
[1725249524514,0.0004,57753.0,57752.0,0.421406]
[1725249524803,0.2,57776.0,57752.0,0.421406]
[1725249524804,0.06871902,57771.0,57764.0,0.060593]
[1725249525008,0.06871902,57775.0,57770.0,0.3608]
[1725249525197,0.19736701,57773.0,57770.0,0.3608]
[1725249525401,0.12930002,57777.0,57770.0,0.3608]
[1725249525402,0.060581,57777.0,57770.0,0.3608]
[1725249525600,0.18127734,57774.0,57770.0,0.3608]
[1725249525908,0.38127734,57772.0,57770.0,0.3608]
[1725249526207,0.060595,57763.0,57762.0,0.0002597]
[1725249526605,0.25240754,57763.0,57762.0,0.0002597]
[1725249527105,0.25140754,57763.0,57762.0,0.0002597]
[1725249527709,0.25240754,57763.0,57762.0,0.0002597]
[1725249528204,0.25240754,57763.0,57762.0,0.0012597]
[1725249528511,0.32109125,57763.0,57762.0,0.0012597]
[1725249528910,0.381394,57763.0,57762.0,0.0012597]
[1725249529901,0.381394,57763.0,57762.0,0.0002597]
[1725249529902,0.380394,57763.0,57762.0,0.0002597]
[1725249530206,0.381394,57763.0,57762.0,0.0012197]
[1725249530505,1.69169038,57763.0,57762.0,0.0016197]
[1725249530713,1.56654866,57763.0,57762.0,0.0016197]
[1725249531008,1.50444795,57763.0,57762.0,0.0016197]
[1725249532313,1.50444795,57763.0,57750.0,0.3612]
[1725249532314,1.50484795,57763.0,57750.0,0.3608]
[1725249532515,0.15499458,57752.0,57750.0,0.3608]
[1725249532708,0.060612,57747.0,57745.0,0.3608]
[1725249533017,0.48005388,57746.0,57745.0,0.3608]
[1725249533613,0.3240593,57746.0,57745.0,0.3608]
[1725249534111,0.3260593,57746.0,57745.0,0.3608]
[1725249535401,0.3260593,57746.0,57745.0,1.68032]
[1725249535603,0.08827095,57746.0,57745.0,1.68032]
[1725249535800,0.00025886,57751.0,57745.0,1.68032]
[1725249535801,0.00025886,57751.0,57750.0,0.060609]
[1725249536001,0.00025886,57751.0,57750.0,0.621409]
[1725249536212,0.00357668,57762.0,57750.0,1.68028]
[1725249536514,0.06889102,57785.0,57761.0,1.1216]
[1725249536716,0.36960935,57799.0,57756.0,0.08633009]
[1725249536717,0.06888893,57784.0,57783.0,0.7216]
[1725249537223,0.20074427,57784.0,57783.0,0.7216]
[1725249537603,0.06888893,57785.0,57783.0,0.3608]
[1725249537812,0.1891,57784.0,57778.0,0.0002597]
[1725249538109,0.37720814,57784.0,57783.0,0.0004]
[1725249538301,0.73800814,57784.0,57783.0,0.0004]
[1725249538909,0.060576,57781.0,57778.0,0.0002597]
[1725249539107,0.260576,57781.0,57778.0,0.0002597]
[1725249539311,0.2704251,57780.0,57778.0,0.0002597]
[1725249539907,0.18426971,57780.0,57778.0,0.0002597]
[1725249540112,0.2704251,57780.0,57778.0,0.0002597]
[1725249540303,0.08615539,57779.0,57774.0,0.3608]
[1725249540516,0.2,57777.0,57774.0,0.3608]
[1725249540923,0.18513036,57776.0,57774.0,0.3608]
[1725249541111,0.18413036,57776.0,57774.0,0.3608]
[1725249541434,0.0907,57775.0,57774.0,0.3608]
[1725249541620,0.151282,57775.0,57774.0,0.3608]
[1725249541802,0.34898392,57775.0,57774.0,0.3608]
[1725249542419,0.060586,57772.0,57769.0,0.3610597]
[1725249542711,0.059586,57772.0,57769.0,0.3610597]
[1725249542912,0.18772875,57771.0,57769.0,0.3610597]
[1725249543911,0.04139061,57770.0,57769.0,0.3610597]
[1725249544233,0.22612736,57770.0,57769.0,0.3610597]
[1725249544515,0.22612736,57770.0,57769.0,0.3620597]
[1725249545720,0.25956445,57770.0,57769.0,1.4813797]
[1725249546123,0.03343709,57770.0,57769.0,1.4813797]
[1725249546617,0.12043177,57770.0,57769.0,1.4813797]
[1725249546814,0.15386886,57770.0,57769.0,1.4813797]
[1725249547224,0.03343709,57770.0,57769.0,1.4813797]
[1725249547441,0.23301009,57770.0,57769.0,0.3620597]
[1725249547726,0.03343709,57770.0,57769.0,1.4813797]
[1725249548822,0.0002597,57781.0,57770.0,0.51932]
[1725249548823,0.13768156,57777.0,57770.0,0.51932]
[1725249549017,0.13768156,57777.0,57769.0,1.0531597]
[1725249549018,0.13763628,57780.0,57778.0,0.060579]
[1725249549223,0.3305263,57780.0,57779.0,0.7192]
[1725249549517,0.0334308,57780.0,57779.0,0.7192]
[1725249549723,0.0334308,57780.0,57779.0,1.3192]
[1725249549916,0.30324371,57780.0,57779.0,1.3192]
[1725249550227,0.12066544,57781.0,57779.0,0.8]
[1725249550571,0.10319552,57786.0,57780.0,0.7192]
[1725249550821,0.260547,57809.0,57788.0,0.060568]
[1725249551067,0.060561,57796.0,57795.0,0.3608]
[1725249551417,0.18182371,57796.0,57795.0,1.1608]
[1725249551615,0.0956,57803.0,57795.0,0.5608]
[1725249551819,0.18398436,57800.0,57795.0,0.5608]
[1725249552023,0.36160501,57801.0,57795.0,0.5608]
[1725249552226,0.36160501,57801.0,57795.0,0.3608]
[1725249552429,0.36160501,57797.0,57795.0,0.3608]
[1725249552825,0.54336479,57796.0,57790.0,0.0002597]
[1725249553128,0.36060501,57793.0,57790.0,0.0002597]
[1725249553326,0.36060501,57794.0,57792.0,0.3608]
[1725249553521,0.36060501,57793.0,57792.0,0.3608]
[1725249553724,0.55290912,57793.0,57792.0,0.3608]
[1725249554025,0.35960501,57793.0,57790.0,0.0002597]
[1725249554215,0.55290912,57793.0,57790.0,0.0002597]
[1725249554825,0.35960501,57791.0,57790.0,0.0002597]
[1725249555127,0.54901466,57791.0,57790.0,0.0002597]
[1725249555919,0.18940965,57791.0,57790.0,0.0002597]
[1725249556122,0.18940965,57791.0,57790.0,0.5610597]
[1725249556351,0.19096793,57792.0,57790.0,0.5610597]
[1725249556523,0.001,57791.0,57790.0,0.5610597]
[1725249556924,0.19206087,57791.0,57790.0,0.5610597]
[1725249557128,0.19206087,57791.0,57790.0,0.5620597]
[1725249558019,0.19206087,57791.0,57790.0,0.3620597]
[1725249559225,0.19206087,57791.0,57790.0,0.3610597]
[1725249560742,0.55166588,57791.0,57790.0,0.3610597]
[1725249561726,0.6548614,57791.0,57790.0,0.3610597]
[1725249561921,0.55166588,57791.0,57790.0,0.3610597]
[1725249562952,0.19206087,57791.0,57790.0,0.3610597]
[1725249563235,0.22548508,57791.0,57790.0,0.3610597]
[1725249563731,0.19206087,57791.0,57790.0,0.3620597]
[1725249563947,0.22548513,57791.0,57790.0,0.3620597]
[1725249565128,0.64565614,57791.0,57790.0,0.0002597]
[1725249565328,1.00645614,57791.0,57790.0,0.0002597]
[1725249565518,1.04883344,57791.0,57790.0,0.0002597]
[1725249565721,0.68803344,57791.0,57790.0,0.0002597]
[1725249565929,0.61123188,57791.0,57790.0,0.0082597]
[1725249566421,0.61123188,57791.0,57790.0,0.0002597]
[1725249566626,0.61123188,57791.0,57790.0,0.0062597]
[1725249567119,0.61123188,57791.0,57790.0,0.0022597]
[1725249567723,1.77203188,57791.0,57782.0,0.41221162]
[1725249567918,1.77203188,57791.0,57782.0,0.3608]
[1725249567919,0.42017901,57783.0,57782.0,0.3608]
[1725249568330,0.60905595,57783.0,57782.0,0.3608]
[1725249568631,0.60905595,57783.0,57777.0,0.05141162]
[1725249568632,0.71704622,57783.0,57777.0,0.05141162]
[1725249568830,0.58018401,57778.0,57777.0,0.0002597]
[1725249569026,0.42018401,57778.0,57777.0,0.0002597]
[1725249569226,0.61953107,57778.0,57777.0,0.0002597]
[1725249569427,0.61853107,57778.0,57777.0,0.0002597]
[1725249570230,0.61853107,57778.0,57777.0,0.0062597]
[1725249572836,0.61853107,57778.0,57776.0,0.0004]
[1725249573042,0.61853107,57778.0,57772.0,0.3608]
[1725249573043,0.060584,57773.0,57772.0,0.3608]
[1725249573222,0.41918901,57773.0,57772.0,0.3608]
[1725249573529,0.60412549,57773.0,57772.0,0.3608]
[1725249574293,0.54354149,57773.0,57772.0,0.3608]
[1725249574537,0.18493648,57773.0,57772.0,0.9608]
[1725249574733,0.18493648,57773.0,57772.0,1.221386]
[1725249575233,0.0004,57778.0,57777.0,0.06058]
[1725249575433,0.0004,57778.0,57777.0,0.75325385]
[1725249575636,0.0002597,57788.0,57777.0,1.81191385]
[1725249575838,0.0002597,57788.0,57787.0,0.9216]
[1725249576333,0.0002597,57788.0,57787.0,1.5216]
[1725249576521,0.0002597,57788.0,57787.0,1.60740865]
[1725249576725,0.0002597,57788.0,57787.0,1.60780865]
[1725249576931,0.0002597,57788.0,57787.0,1.522]
[1725249578037,0.0002597,57788.0,57787.0,0.922]
[1725249578332,0.0002597,57788.0,57787.0,1.532]
[1725249578840,0.18768534,57788.0,57787.0,0.732]
[1725249579428,0.18768534,57788.0,57787.0,0.79768162]
[1725249580030,0.54629035,57788.0,57787.0,0.79468162]
[1725249580231,0.54629035,57788.0,57787.0,0.0044]
[1725249581744,0.54629035,57788.0,57787.0,0.0004]
[1725249581932,0.54629035,57788.0,57787.0,0.0024]
[1725249582139,0.18768534,57788.0,57787.0,0.0024]
[1725249582333,0.54629035,57788.0,57787.0,0.0024]
[1725249582740,0.54929035,57788.0,57787.0,0.0004]
[1725249583243,0.54629035,57788.0,57787.0,0.0014]
[1725249586549,0.57973,57787.0,57782.0,0.05186628]
[1725249586845,0.3608,57783.0,57782.0,0.0002597]
[1725249587343,0.60202698,57783.0,57782.0,0.0002597]
[1725249588557,1.12122698,57783.0,57782.0,0.0002597]
[1725249588736,0.06058,57777.0,57776.0,0.05160658]
[1725249589051,0.06058,57777.0,57763.0,0.2]
[1725249589052,0.060581,57776.0,57775.0,0.05160658]
[1725249589345,0.44781504,57776.0,57774.0,0.05160658]
[1725249589740,0.44781504,57776.0,57767.0,0.3608]
[1725249589741,0.060582,57775.0,57773.0,0.05160658]
[1725249589948,0.060582,57775.0,57774.0,0.05160658]
[1725249590443,0.25210215,57775.0,57774.0,0.0516232]
[1725249590649,0.19152015,57775.0,57774.0,0.9317032]
[1725249590922,0.19152015,57775.0,57774.0,1.540663]
[1725249590923,0.11552042,57775.0,57774.0,1.540663]
[1725249591113,0.004,57783.0,57774.0,1.61195636]
[1725249591301,0.004,57783.0,57782.0,0.5608]
[1725249591552,0.0006597,57788.0,57782.0,0.5612]
[1725249591742,0.0006597,57788.0,57787.0,0.3612]
[1725249591948,0.0006597,57788.0,57787.0,0.5612]
[1725249592140,0.18198009,57788.0,57787.0,0.5612]
[1725249593050,0.18198009,57788.0,57787.0,0.5642]
[1725249594141,0.18198009,57788.0,57787.0,0.0034]
[1725249594343,0.18198009,57788.0,57787.0,0.07215461]
[1725249594565,0.18198009,57788.0,57787.0,0.0034]
[1725249594750,0.54278009,57788.0,57787.0,0.0004]
[1725249594955,0.54278009,57788.0,57787.0,0.0044]
[1725249595345,1.06194009,57788.0,57787.0,0.0044]
[1725249595551,1.06194009,57788.0,57787.0,0.0004]
[1725249596049,0.54278009,57788.0,57787.0,0.0004]
[1725249596364,1.06694009,57788.0,57787.0,0.0004]
[1725249596556,1.66694009,57788.0,57787.0,0.0004]
[1725249596747,0.059574,57783.0,57782.0,0.0002597]
[1725249596953,0.059974,57783.0,57782.0,0.0002597]
[1725249597252,0.25462008,57783.0,57782.0,0.0002597]
[1725249598450,0.25662008,57783.0,57782.0,0.0002597]
[1725249599052,0.77582008,57783.0,57782.0,0.0002597]
[1725249599450,1.13662008,57783.0,57782.0,0.0002597]
[1725249599651,1.73662008,57783.0,57782.0,0.0002597]
[1725249600347,1.73662008,57783.0,57778.0,0.05157238]
[1725249600348,0.060579,57778.0,57776.0,0.05157238]
[1725249600543,0.0952,57777.0,57775.0,0.05157238]
[1725249600759,0.060982,57776.0,57774.0,0.04907238]
[1725249601031,0.0004,57775.0,57772.0,0.04907238]
[1725249601262,0.19693592,57775.0,57772.0,0.04907238]
[1725249601515,0.060589,57769.0,57768.0,0.06901431]
[1725249601654,0.060989,57769.0,57768.0,0.0002597]
[1725249601857,0.25983655,57769.0,57768.0,0.0002597]
[1725249602161,0.25983655,57769.0,57768.0,0.00385997]
[1725249602362,0.25983655,57769.0,57768.0,0.0002597]
[1725249603055,0.26283655,57769.0,57768.0,0.0002597]
[1725249604161,0.26033655,57769.0,57768.0,0.0002597]
[1725249604466,1.93745655,57769.0,57768.0,0.0002597]
[1725249604665,1.68436755,57769.0,57757.0,0.06875461]
[1725249604958,0.061001,57758.0,57756.0,0.06875461]
[1725249605242,0.0004,57757.0,57756.0,0.06875461]
[1725249605359,0.0004,57757.0,57756.0,0.5608]
[1725249605360,0.1909942,57757.0,57756.0,0.5608]
[1725249605554,0.0004,57757.0,57756.0,1.81215842]
[1725249605861,0.1908539,57762.0,57756.0,1.81215842]
[1725249605862,0.0002597,57762.0,57757.0,0.0016]
[1725249606060,0.0002597,57762.0,57761.0,0.5208]
[1725249606360,0.18386126,57762.0,57761.0,0.5212]
[1725249606556,0.24445726,57762.0,57761.0,0.06921055]
[1725249606756,0.18386126,57762.0,57761.0,0.0004]
[1725249607276,0.18386126,57762.0,57761.0,1.27976]
[1725249607757,0.18386126,57762.0,57761.0,0.1604]
[1725249608758,0.18786126,57762.0,57761.0,0.1604]
[1725249609551,0.0042597,57762.0,57761.0,1.27976]
[1725249610152,0.18478427,57762.0,57761.0,0.1604]
[1725249610565,0.18478427,57762.0,57761.0,0.5212]
[1725249610819,0.0042597,57762.0,57761.0,1.85845885]
[1725249611074,0.0042597,57762.0,57761.0,1.25845666]
[1725249611352,0.0042597,57762.0,57761.0,1.12655386]
[1725249611556,0.18891059,57762.0,57761.0,0.60719386]
[1725249611764,0.18891059,57762.0,57761.0,0.5212]
[1725249611955,0.18891059,57762.0,57761.0,0.60719386]
[1725249612358,0.0042597,57762.0,57761.0,1.72655386]
[1725249612555,0.0042597,57762.0,57761.0,1.77246656]
[1725249612762,0.0042597,57762.0,57761.0,1.7724657]
[1725249613267,0.060582,57776.0,57761.0,1.7724657]
[1725249613464,0.060582,57776.0,57775.0,0.0004]
[1725249613877,0.25239599,57776.0,57775.0,0.0004]
[1725249614563,0.25639599,57776.0,57775.0,0.0004]
[1725249615063,0.25239599,57776.0,57775.0,0.0004]
[1725249615370,0.25939599,57776.0,57775.0,0.0014]
[1725249617574,0.19881399,57776.0,57775.0,0.0014]
[1725249620066,0.25939499,57776.0,57775.0,0.0014]
[1725249620683,0.25939499,57776.0,57770.0,0.0002597]
[1725249620684,0.060587,57771.0,57770.0,0.0002597]
[1725249620771,0.0004,57771.0,57770.0,0.0002597]
[1725249621079,0.20086696,57771.0,57770.0,0.0608477]
[1725249621870,0.20886696,57771.0,57770.0,0.0618477]
[1725249622471,0.20886696,57771.0,57770.0,0.13063291]
[1725249623469,0.20886696,57771.0,57770.0,0.0618477]
[1725249624768,0.20886696,57771.0,57770.0,0.0012597]
[1725249626062,0.20886696,57771.0,57770.0,0.08724121]
[1725249626274,0.20886696,57771.0,57770.0,0.0012597]
[1725249626465,0.20886696,57771.0,57770.0,0.08724121]
[1725249627386,0.20886696,57771.0,57770.0,0.21914217]
[1725249627681,0.20886696,57771.0,57770.0,0.19374866]
[1725249629468,0.20886696,57771.0,57770.0,0.19374341]
[1725249631579,0.20886696,57771.0,57770.0,0.19374184]
[1725249631972,0.20886696,57771.0,57770.0,0.13315384]
[1725249632468,0.26945396,57771.0,57770.0,0.13315384]
[1725249633167,0.26945396,57771.0,57770.0,0.08748617]
[1725249633369,0.56966696,57771.0,57762.0,0.4643961]
[1725249633579,0.56966696,57771.0,57763.0,0.08625702]
[1725249633580,0.3608,57765.0,57763.0,0.08625702]
[1725249633774,0.060599,57759.0,57758.0,0.08625702]
[1725249633972,0.060599,57759.0,57755.0,0.1035961]
[1725249633973,0.060601,57757.0,57755.0,0.08625702]
[1725249634316,0.060604,57754.0,57752.0,0.08625702]
[1725249634476,0.221006,57753.0,57750.0,0.44705702]
[1725249634683,0.3612,57751.0,57747.0,0.0002597]
[1725249634975,0.0004,57748.0,57747.0,0.0002597]
[1725249635181,0.22061,57749.0,57747.0,0.0002597]
[1725249635379,0.18328232,57748.0,57747.0,0.0002597]
[1725249635675,0.17628232,57748.0,57747.0,0.0002597]
[1725249637076,0.85580232,57748.0,57747.0,0.0002597]
[1725249637536,0.060617,57742.0,57738.0,0.06897269]
[1725249637682,0.3612,57739.0,57737.0,0.06897269]
[1725249637875,0.0004,57738.0,57737.0,0.06897269]
[1725249638077,0.18978922,57738.0,57737.0,0.06897269]
[1725249638383,0.006,57748.0,57747.0,0.0003403]
[1725249638893,0.19578922,57748.0,57747.0,0.0007403]
[1725249639186,0.421408,57751.0,57747.0,0.0004]
[1725249639383,0.18515866,57748.0,57747.0,0.0004]
[1725249639580,0.18515866,57749.0,57742.0,0.06885206]
[1725249639779,0.3608,57751.0,57748.0,0.0004]
[1725249640079,0.18276796,57749.0,57748.0,0.0004]
[1725249640592,0.3608,57751.0,57748.0,0.0004]
[1725249640845,0.18276796,57749.0,57748.0,0.0004]
[1725249640989,0.19355764,57750.0,57748.0,0.0004]
[1725249641297,0.3610597,57755.0,57749.0,0.1604]
[1725249641474,0.19355764,57750.0,57749.0,0.1604]
[1725249641776,0.19355764,57754.0,57749.0,0.16]
[1725249641981,0.3610597,57755.0,57753.0,0.0004]
[1725249642187,0.18558671,57754.0,57753.0,0.0004]
[1725249644675,0.18658671,57754.0,57753.0,0.0004]
[1725249645883,0.19258671,57754.0,57753.0,0.0004]
[1725249646474,0.35258671,57754.0,57753.0,0.0004]
[1725249647176,0.19258671,57754.0,57753.0,0.0004]
[1725249647584,0.19358671,57754.0,57753.0,0.0004]
[1725249648890,0.18558671,57754.0,57753.0,1.180445]
[1725249649190,0.008,57754.0,57753.0,1.180445]
[1725249649388,0.008,57754.0,57753.0,0.580445]
[1725249649596,0.008,57754.0,57753.0,0.58407651]
[1725249650090,0.20094385,57754.0,57753.0,0.06463651]
[1725249650881,0.008,57754.0,57753.0,1.61372857]
[1725249651080,0.16,57772.0,57753.0,1.61372857]
[1725249651081,0.3608,57778.0,57754.0,0.51944]
[1725249651282,0.3608,57778.0,57769.0,0.060589]
[1725249651587,0.18221857,57777.0,57773.0,0.16]
[1725249651787,0.18221857,57777.0,57776.0,0.5208]
[1725249651986,0.0012,57784.0,57776.0,0.5208]
[1725249652194,0.0012,57784.0,57783.0,0.2290794]
[1725249652501,0.0012,57784.0,57783.0,0.7604]
[1725249652689,0.18921774,57784.0,57783.0,0.0004]
[1725249653991,0.18921774,57784.0,57783.0,0.1604]
[1725249654395,0.19121774,57784.0,57783.0,0.1604]
[1725249655690,0.19121774,57784.0,57783.0,0.16402703]
[1725249655892,0.19121774,57784.0,57783.0,0.00402703]
[1725249657187,0.18921774,57784.0,57783.0,0.00402703]
[1725249657417,0.19021774,57784.0,57783.0,0.00902703]
[1725249657893,0.18921774,57784.0,57783.0,0.00402703]
[1725249658199,0.19021774,57784.0,57783.0,0.00902703]
[1725249658395,0.19021774,57784.0,57783.0,0.0054]
[1725249658692,0.19021774,57784.0,57783.0,0.0004]
[1725249658901,0.18921774,57784.0,57783.0,0.0004]
[1725249659098,0.19021774,57784.0,57783.0,0.0014]
[1725249660296,0.18921774,57784.0,57783.0,0.0004]
[1725249660497,0.18921774,57784.0,57783.0,0.0014]
[1725249660902,0.19121774,57784.0,57783.0,0.0004]
[1725249661596,0.19321774,57784.0,57783.0,0.0004]
[1725249663199,0.19521774,57784.0,57783.0,0.0014]
[1725249663594,0.0072,57784.0,57783.0,1.64136]
[1725249663801,0.0092,57784.0,57783.0,1.701934]
[1725249664406,0.0012,57784.0,57783.0,1.700934]
[1725249664602,0.3608,57812.0,57784.0,0.51916]
[1725249664906,0.3608,57798.0,57792.0,0.3608]
[1725249665206,0.18281015,57797.0,57792.0,0.3608]
[1725249665700,0.06056,57797.0,57792.0,0.3608]
[1725249665903,0.18281015,57799.0,57792.0,0.3608]
[1725249666222,0.19654278,57796.0,57792.0,0.3608]
[1725249666406,0.3610597,57800.0,57789.0,0.0002597]
[1725249666407,0.5208,57793.0,57789.0,0.0002597]
[1725249666599,0.060566,57791.0,57789.0,0.0002597]
[1725249666993,0.19333328,57790.0,57789.0,0.0002597]
[1725249667696,0.87245328,57790.0,57789.0,0.0002597]
[1725249667900,0.87245328,57790.0,57783.0,0.0004]
[1725249667901,0.060573,57784.0,57783.0,0.0004]
[1725249668097,0.581373,57784.0,57783.0,0.0004]
[1725249668298,0.7743917,57784.0,57783.0,0.0004]
[1725249669093,0.1960187,57784.0,57783.0,0.0004]
[1725249669560,0.205,57792.0,57783.0,0.0004]
[1725249669561,0.19218475,57791.0,57783.0,0.0004]
[1725249669709,0.3608,57787.0,57783.0,0.0004]
[1725249670095,0.19929795,57786.0,57783.0,0.0004]
[1725249670502,0.001,57784.0,57783.0,0.0004]
[1725249670897,0.205,57792.0,57784.0,0.060573]
[1725249671308,0.19788451,57788.0,57784.0,0.060573]
[1725249671494,0.25845051,57791.0,57784.0,0.060573]
[1725249671692,0.3608,57787.0,57783.0,0.0004]
[1725249671909,0.55868451,57787.0,57783.0,0.0004]
[1725249672095,0.3618,57787.0,57783.0,0.0004]
[1725249672302,0.3618,57787.0,57786.0,0.0004]
[1725249672695,0.5494114,57787.0,57786.0,0.0004]
[1725249673301,0.5504114,57787.0,57786.0,0.0004]
[1725249674406,0.5494114,57787.0,57786.0,0.0004]
[1725249674605,0.5534114,57787.0,57786.0,0.0004]
[1725249675008,0.1926114,57787.0,57786.0,0.0004]
[1725249676013,0.1886114,57787.0,57786.0,0.0004]
[1725249676315,0.3618,57787.0,57786.0,0.0064]
[1725249676720,0.55278698,57787.0,57786.0,0.0014]
[1725249676918,0.61335698,57787.0,57786.0,0.0014]
[1725249677403,0.55278698,57787.0,57786.0,0.0004]
[1725249677600,0.19198698,57787.0,57786.0,0.49038479]
[1725249678111,0.3608,57795.0,57786.0,0.0004]
[1725249678112,0.3608,57789.0,57786.0,0.0004]
[1725249678318,0.3608,57789.0,57788.0,0.0004]
[1725249678515,0.421368,57789.0,57788.0,0.0004]
[1725249678702,0.61742806,57789.0,57788.0,0.0004]
[1725249679634,0.060572,57785.0,57784.0,0.06871789]
[1725249679825,0.060578,57779.0,57778.0,0.06913842]
[1725249680111,0.060578,57779.0,57778.0,0.0002597]
[1725249680112,0.61518843,57779.0,57778.0,0.0002597]
[1725249680315,0.61418843,57779.0,57778.0,0.0002597]
[1725249680614,0.61418843,57779.0,57778.0,0.06913842]
[1725249680817,0.060584,57773.0,57772.0,0.08606508]
[1725249681012,0.049586,57772.0,57769.0,0.08606508]
[1725249681512,0.19436674,57771.0,57769.0,0.08606508]
[1725249682320,0.19436674,57771.0,57768.0,0.08606508]
[1725249682633,0.19436674,57771.0,57766.0,0.08606508]
[1725249682709,0.16,57770.0,57766.0,0.08606508]
[1725249683110,0.18782531,57769.0,57767.0,0.08606508]
[1725249683315,0.18782531,57769.0,57766.0,0.08606508]
[1725249683316,0.14452008,57769.0,57766.0,0.08606508]
[1725249683821,0.14452008,57769.0,57765.0,0.08606508]
[1725249684117,0.3608,57768.0,57765.0,0.08606508]
[1725249684523,0.18649108,57767.0,57764.0,0.08632478]
[1725249685330,0.18649108,57767.0,57765.0,0.08606508]
[1725249685619,0.220592,57766.0,57764.0,0.08632478]
[1725249685817,0.16,57766.0,57765.0,0.06888297]
[1725249686035,0.71693194,57765.0,57764.0,0.0002597]
[1725249686434,0.71693194,57765.0,57752.0,0.00365328]
[1725249686435,0.51936,57765.0,57752.0,0.08606508]
[1725249686518,0.06061,57749.0,57747.0,0.08606508]
[1725249686615,0.06061,57749.0,57730.0,0.12107234]
[1725249686616,0.3608,57748.0,57733.0,0.1035961]
[1725249686816,0.3608,57748.0,57714.0,0.08682]
[1725249686817,0.5208,57734.0,57728.0,0.06891655]
[1725249687019,0.060641,57720.0,57716.0,0.06894256]
[1725249687225,0.5208,57717.0,57712.0,0.00017312]
[1725249687420,0.5208,57717.0,57701.0,0.06894256]
[1725249687421,0.060655,57707.0,57701.0,0.06894256]
[1725249687623,0.5208,57702.0,57685.0,0.49041856]
[1725249687814,0.3608,57698.0,57686.0,0.06894256]
[1725249688017,0.3608,57698.0,57682.0,0.42148]
[1725249688018,0.2,57688.0,57682.0,0.06894256]
[1725249688218,0.3608,57685.0,57670.0,0.06894256]
[1725249688429,0.3608,57685.0,57663.0,0.06894256]
[1725249688430,0.2,57678.0,57663.0,0.06894256]
[1725249688629,0.2,57678.0,57657.0,0.3608]
[1725249688630,0.3608,57675.0,57657.0,0.3608]
[1725249688936,0.3608,57658.0,57643.0,0.42925879]
[1725249689255,0.3608,57658.0,57632.0,0.060732]
[1725249689256,0.2,57644.0,57631.0,0.3608]
[1725249689428,0.2,57639.0,57623.0,0.06845879]
[1725249689727,0.18971233,57638.0,57627.0,0.3608]
[1725249690114,0.18832762,57639.0,57636.0,0.2]
[1725249690425,0.001,57644.0,57638.0,0.3612]
[1725249690726,0.18832762,57677.0,57643.0,0.5612]
[1725249690938,0.18832762,57677.0,57639.0,0.31145749]
[1725249690939,0.00026017,57661.0,57655.0,0.060708]
[1725249691123,0.00026017,57661.0,57660.0,0.3608]
[1725249691522,0.3608,57682.0,57660.0,1.68108]
[1725249691715,0.3608,57682.0,57681.0,0.0004]
[1725249692129,0.55522398,57682.0,57681.0,0.0004]
[1725249692628,0.00026017,57687.0,57681.0,1.32048]
[1725249692820,0.00026017,57687.0,57686.0,0.0004]
[1725249693219,0.19946358,57687.0,57686.0,0.0004]
[1725249693424,0.00026017,57687.0,57686.0,1.68124]
[1725249693620,0.3608,57701.0,57686.0,1.68124]
[1725249693946,0.5608,57708.0,57672.0,0.3608]
[1725249693947,0.19920341,57687.0,57672.0,0.3608]
[1725249694122,0.3608,57690.0,57679.0,0.24]
[1725249694322,0.001,57687.0,57679.0,0.24]
[1725249694725,0.19653278,57686.0,57679.0,0.24]
[1725249696120,0.0004,57680.0,57679.0,0.24]
[1725249696427,0.19653278,57686.0,57679.0,0.24]
[1725249696428,0.3608,57685.0,57679.0,0.24]
[1725249696627,0.19205129,57680.0,57679.0,0.2404]
[1725249696825,0.55285129,57684.0,57679.0,0.0004]
[1725249697132,0.3608,57684.0,57679.0,0.0144]
[1725249697329,0.18054211,57683.0,57679.0,0.0144]
[1725249697534,0.060681,57682.0,57679.0,0.0144]
[1725249697929,0.18054211,57681.0,57679.0,0.0144]
[1725249698531,0.060682,57680.0,57679.0,0.0004]
[1725249698729,0.060682,57680.0,57679.0,0.0074]